lending/lending_fUSD_20240206
["ID","MTS","AMOUNT","RATE_DAILY","PERIOD"]
[313372561,1707239445685,-474.9218197,0.00022999,2]
[313372562,1707239445695,-704.47972287,0.00022999,2]
[313372563,1707239445704,-606.50097601,0.00022999,2]
[313372564,1707239445713,-366.48843943,0.00023,2]
[313372611,1707239446430,-10461.21016303,0.00023,2]
[313372612,1707239448674,176.99,0.00022,2]
[313372613,1707239481056,150.0,0.00022,2]
[313372617,1707239487592,300.0,0.000225,8]
[313372618,1707239500005,421.40931563,0.00022076,2]
[313372620,1707239506131,916.28,0.00022338,2]
[313372621,1707239531371,175.75846491,0.00020695,2]
[313372622,1707239549466,150.0,0.00022,2]
[313372623,1707239550443,414.59,0.00020102,2]
[313372624,1707239550846,414.59,0.00022366,2]
[313372625,1707239576681,23900.0,0.0002194,2]
[313372626,1707239579547,17288.1297019,0.00020695,2]
[313372627,1707239581691,561.86622075,0.00020465,2]
[313372628,1707239582015,323.01906998,0.00022074,2]
[313372629,1707239591506,623.3393929,0.00022074,2]
[313372630,1707239594624,179.1,0.00022475,2]
[313372631,1707239596431,3033.28117945,0.00021844,2]
[313372632,1707239600736,1101.45649291,0.00020695,2]
[313372633,1707239603363,151.85011728,0.00022441,2]
[313372634,1707239608412,151.85011723,0.00022483,2]
[313372635,1707239617811,150.0,0.00022,2]
[313372636,1707239636840,150.0,0.00021892,2]
[313372637,1707239638725,409.56990555,0.00022475,2]
[313372638,1707239669514,623.61336508,0.0002198,2]
[313372639,1707239678123,284.88299005,0.00022475,2]
[313372640,1707239680021,260.71319616,0.00022475,2]
[313372641,1707239686246,208.12,0.00021984,2]
[313372642,1707239686476,208.12,0.00022044,2]
[313372643,1707239686515,2203.04,0.0002182,2]
[313372644,1707239686693,208.12,0.00022104,2]
[313372645,1707239686930,208.12,0.00022165,2]
[313372646,1707239687363,208.12,0.00022225,2]
[313372647,1707239687603,208.12,0.00022285,2]
[313372648,1707239687835,208.12,0.00022345,2]
[313372649,1707239688065,208.12,0.00022406,2]
[313372650,1707239688297,208.12,0.00022466,2]
[313372651,1707239688885,858.66470521,0.00022475,2]
[313372652,1707239689520,213.88677894,0.00021856,2]
[313372653,1707239694609,200.0,0.00021739,2]
[313372654,1707239710695,858.66470521,0.00022475,2]
[313372655,1707239712010,270.05230526,0.00022475,2]
[313372656,1707239720121,285.11121778,0.00021739,2]
[313372657,1707239728691,858.66470521,0.00021739,2]
[313372658,1707239734788,163.19,0.00021739,2]
[313372659,1707239744138,168.03386986,0.00021739,2]
[313372660,1707239746702,448.96695143,0.00021739,2]
[313372661,1707239748065,1771.8,0.00021739,2]
[313372662,1707239750431,2000.0,0.00021739,2]
[313372663,1707239763520,25864.1753,0.000225,2]
[313372664,1707239765685,612.36357773,0.00021739,2]
[313372665,1707239772448,250.0,0.00021918,2]
[313372666,1707239781664,612.36357773,0.00021739,2]
[313372667,1707239794905,157.68,0.00021737,10]
[313372669,1707239801666,612.36357773,0.00021739,2]
[313372671,1707239818412,200.0,0.00021741,2]
[313372672,1707239819693,612.36357773,0.00021739,2]
[313372673,1707239835586,200.0,0.00021757,2]
[313372674,1707239835694,612.36357773,0.00021739,2]
[313372675,1707239841836,159.43846532,0.00021756,2]
[313372676,1707239855686,157.8380234,0.00021739,2]
[313372677,1707239856238,200.0,0.00021757,2]
[313372678,1707239864034,250.0,0.00021757,2]
[313372679,1707239880894,155.0,0.00022502,2]
[313372680,1707239881806,155.0,0.00022502,2]
[313372681,1707239888917,2328.75332884,0.00022502,2]
[313372682,1707239889891,1141.10350656,0.00022502,2]
[313372683,1707239890934,229.23938363,0.00022502,2]
[313372684,1707239893426,302.46277549,0.00022502,2]
[313372685,1707239919036,3074.98,0.00021777,2]
[313372686,1707239920613,209.87,0.00021777,2]
[313372687,1707239922580,420.99179259,0.00022502,2]
[313372688,1707239924378,155.0,0.00022502,2]
[313372689,1707239930724,156.99,0.00021789,2]
[313372691,1707240000902,155.0,0.00022502,2]
[313372692,1707240031983,23900.0,0.00021837,2]
[313372693,1707240055073,258.03,0.00022,2]
[313372694,1707240056351,258.03,0.00022137,2]
[313372695,1707240057664,258.03,0.00022274,2]
[313372696,1707240058925,258.03,0.00022411,2]
[313372697,1707240067935,171.3,0.00017473,2]
[313372698,1707240086250,176.99,0.00022,2]
[313372699,1707240101827,1835.86,0.00021841,2]
[313372700,1707240114101,1025.20851027,0.00022502,2]
[313372701,1707240123359,283.92894102,0.00022502,2]
[313372702,1707240148271,164.19,0.00021848,2]
[313372703,1707240163991,2000.0,0.0002184,2]
[313372704,1707240182107,8054.92,0.00021918,2]
[313372705,1707240182724,223.2833,0.000225,2]
[313372706,1707240184437,150.0,0.00021838,2]
[313372707,1707240198144,227.14,0.00021833,2]
[313372708,1707240198701,250.0,0.00021918,2]
[313372709,1707240215911,150.0,0.00022,2]
[313372710,1707240225148,157.68,0.00021834,10]
[313372711,1707240263983,174.91,0.00021831,2]
[313372712,1707240265559,200.0,0.00021786,2]
[313372713,1707240274832,200.0,0.0002178,2]
[313372714,1707240332445,200.0,0.00021787,2]
[313372718,1707240360452,631.77,0.00021777,2]
[313372719,1707240381623,156.99,0.0002179,2]
[313372721,1707240408698,280.0,0.00021778,2]
[313372722,1707240408834,24113.88,0.00021784,2]
[313372723,1707240417461,1419.6906,0.00022421,2]
[313372724,1707240427255,400.0,0.000225,8]
[313372725,1707240443921,-150.0,0.00022512,2]
[313372726,1707240443949,-155.0,0.00022516,2]
[313372727,1707240443978,-151.85011723,0.00022524,2]
[313372728,1707240444005,-258.03,0.00022548,2]
[313372729,1707240444032,-176.99,0.00022548,2]
[313372730,1707240444058,-150.0,0.00022548,2]
[313372731,1707240444085,-151.85011723,0.00022566,2]
[313372732,1707240444116,-150.0,0.00022599,2]
[313372733,1707240444144,-800.0,0.000226,8]
[313372734,1707240444172,-151.85011723,0.00022608,2]
[313372735,1707240444198,-429.58,0.00022608,2]
[313372736,1707240444223,-499.99,0.00022647,2]
[313372737,1707240444250,-151.85011723,0.0002265,2]
[313372738,1707240444276,-258.03,0.00022685,2]
[313372739,1707240444306,-150.0,0.00022689,2]
[313372740,1707240444332,-29387.88713121,0.0002269,2]
[313372741,1707240444359,-151.85011723,0.00022691,2]
[313372742,1707240444385,-1300.0,0.000227,8]
[313372743,1707240444413,-151.85011723,0.00022733,2]
[313372744,1707240444439,-485.62958217,0.00022756,2]
[313372745,1707240444467,-513.33931697,0.00022764,2]
[313372746,1707240444493,-687.08930327,0.00022766,2]
[313372747,1707240444519,-1054.73834187,0.00022766,2]
[313372748,1707240444544,-159.24585339,0.00022767,2]
[313372749,1707240444569,-155.18180212,0.00022767,2]
[313372750,1707240444594,-944.43455039,0.00022767,2]
[313372751,1707240444621,-191.37763062,0.00022767,2]
[313372752,1707240444645,-1240.55179463,0.00022767,2]
[313372753,1707240444675,-227.42786088,0.00022767,2]
[313372754,1707240444701,-651.60620262,0.00022767,2]
[313372755,1707240444726,-155.0,0.00022767,2]
[313372756,1707240444753,-374.96250057,0.00022767,2]
[313372757,1707240444780,-439.71428451,0.00022767,2]
[313372758,1707240444806,-1000.0,0.00022768,2]
[313372759,1707240444831,-85053.0,0.00022769,2]
[313372760,1707240444858,-15252.82823206,0.0002277,2]
[313372761,1707240444886,-151.85011723,0.00022775,2]
[313372762,1707240444912,-1700.0,0.000228,8]
[313372763,1707240444940,-151.85011723,0.00022817,2]
[313372764,1707240444965,-258.03,0.00022822,2]
[313372765,1707240444993,-169.16423206,0.00022837,2]
[313372766,1707240445021,-151.85011723,0.00022858,2]
[313372767,1707240445046,-384.66969793,0.00022888,2]
[313372768,1707240445072,-260.64085406,0.00022896,2]
[313372769,1707240445098,-261.82623265,0.00022897,2]
[313372770,1707240445123,-1000.0,0.00022898,2]
[313372771,1707240445280,-94402.3234,0.00022898,2]
[313372772,1707240445308,-9305.27381899,0.00022899,2]
[313372773,1707240445336,-544.82854838,0.00022899,2]
[313372774,1707240445363,-1051.73728749,0.00022899,2]
[313372775,1707240445390,-1051.73728748,0.00022899,2]
[313372776,1707240445417,-1051.73728748,0.000229,2]
[313372777,1707240445444,-1051.73728748,0.000229,2]
[313372778,1707240445470,-165.56669244,0.000229,2]
[313372779,1707240445495,-151.85011723,0.000229,2]
[313372780,1707240445523,-1051.73728748,0.000229,2]
[313372781,1707240445549,-1118.62510567,0.000229,2]
[313372782,1707240445576,-691.21129687,0.000229,6]
[313372783,1707240445601,-184.75483576,0.000229,2]
[313372784,1707240445625,-207.02874715,0.000229,2]
[313372785,1707240445649,-1210.80952618,0.000229,2]
[313372786,1707240445674,-2100.0,0.000229,8]
[313372787,1707240445698,-800.0,0.00022959,2]
[313372788,1707240445723,-258.03,0.00022959,2]
[313372789,1707240445748,-151.12841013,0.00022989,2]
[313372790,1707240445772,-155.0,0.00022994,2]
[313372791,1707240445798,-24323.66299118,0.00022995,2]
[313372792,1707240445823,-211.13487274,0.00022996,2]
[313372793,1707240445849,-260.99505921,0.00022996,2]
[313372794,1707240445875,-6480.65586544,0.00022996,2]
[313372795,1707240445900,-2024.33100427,0.00022996,2]
[313372796,1707240445928,-373.47705623,0.00022996,2]
[313372797,1707240445953,-544.80509365,0.00022996,2]
[313372798,1707240445980,-598.64663937,0.00022996,2]
[313372799,1707240446006,-673.3329014,0.00022996,2]
[313372800,1707240446032,-1155.03241176,0.00022996,2]
[313372801,1707240446058,-1189.38681246,0.00022996,2]
[313372802,1707240446083,-10578.78248766,0.00022996,2]
[313372803,1707240446116,-156.62849969,0.00022996,2]
[313372804,1707240446146,-182.89603452,0.00022996,2]
[313372805,1707240446173,-2151.72993286,0.00022996,2]
[313372806,1707240446200,-186.69496292,0.00022996,2]
[313372807,1707240446227,-432.75226238,0.00022996,2]
[313372808,1707240446255,-334.1340822,0.00022996,2]
[313372809,1707240446283,-156.03391707,0.00022996,2]
[313372810,1707240446311,-157.06783975,0.00022996,2]
[313372811,1707240446339,-199.85856477,0.00022996,2]
[313372812,1707240446363,-245.40710978,0.00022996,2]
[313372813,1707240446389,-155.35453074,0.00022996,2]
[313372814,1707240446416,-310.6842223,0.00022996,2]
[313372815,1707240446444,-155.87775606,0.00022996,2]
[313372816,1707240446470,-158.0111281,0.00022996,2]
[313372817,1707240446498,-392.87874065,0.00022996,2]
[313372818,1707240446524,-262.17627751,0.00022996,2]
[313372819,1707240446556,-330.9142419,0.00022996,2]
[313372820,1707240446582,-214.26983669,0.00022996,2]
[313372821,1707240446609,-292.59208088,0.00022996,2]
[313372822,1707240446635,-4138.74864723,0.00022996,2]
[313372823,1707240446660,-189.83233382,0.00022996,2]
[313372824,1707240446686,-2314.06344386,0.00022996,2]
[313372825,1707240446713,-410.18797696,0.00022996,2]
[313372826,1707240446739,-204.8999602,0.00022996,2]
[313372827,1707240446767,-371.55136848,0.00022996,2]
[313372828,1707240446795,-3828.48490855,0.00022996,2]
[313372829,1707240446819,-201.46751163,0.00022996,2]
[313372830,1707240446845,-3653.57827094,0.00022996,2]
[313372831,1707240446874,-630.38045456,0.00022997,2]
[313372832,1707240446900,-199.03575703,0.00022997,2]
[313372833,1707240446925,-202.76099161,0.00022998,2]
[313372834,1707240446951,-929.94153038,0.00022998,2]
[313372835,1707240446978,-769.01361155,0.00022998,2]
[313372836,1707240447005,-155.0,0.00022998,2]
[313372837,1707240447030,-353.17177551,0.00022998,2]
[313372838,1707240447055,-400.0,0.00022998,2]
[313372839,1707240447081,-500.0,0.00022998,2]
[313372840,1707240447106,-166.81229506,0.00022998,2]
[313372841,1707240447130,-200.0,0.00022999,2]
[313372842,1707240447155,-180.0,0.00022999,2]
[313372843,1707240447327,-722.36894024,0.00022999,2]
[313372844,1707240447355,-3039.31060904,0.00022999,2]
[313372845,1707240447379,-348.8905171,0.00022999,10]
[313372846,1707240447407,-939453.92149558,0.00022999,2]
[313372847,1707240447434,-385.75012485,0.00022999,2]
[313372848,1707240447460,-500.0,0.00022999,2]
[313372849,1707240447488,-390.87264122,0.00022999,2]
[313372850,1707240447514,-179.47967903,0.00022999,2]
[313372851,1707240447538,-166.70395157,0.00022999,2]
[313372852,1707240447567,-500.0,0.00022999,2]
[313372853,1707240447596,-500.0,0.00022999,2]
[313372854,1707240447623,-500.0,0.00022999,2]
[313372855,1707240447650,-648.08615926,0.00022999,2]
[313372856,1707240447678,-176.32218749,0.00022999,2]
[313372857,1707240447708,-500.0,0.00022999,2]
[313372858,1707240447735,-500.0,0.00022999,2]
[313372859,1707240447765,-266.41160032,0.00022999,2]
[313372860,1707240447794,-500.0,0.00022999,2]
[313372861,1707240447825,-1211275.01264553,0.00023,2]
[313372862,1707240448170,416.28,0.00020036,2]
[313372863,1707240448211,416.28,0.00022299,2]
[313372869,1707240469152,150.0,0.00022,2]
[313372871,1707240478472,-534.13363385,0.00022511,2]
[313372872,1707240478499,-1954.5875091,0.00022516,2]
[313372873,1707240478525,-150.0,0.00022548,2]
[313372874,1707240478554,-160.7240338,0.00022899,2]
[313372875,1707240478580,-712.59,0.000229,2]
[313372876,1707240478605,-282.40257595,0.00022998,2]
[313372877,1707240478630,-155.0,0.00022998,2]
[313372878,1707240478654,-160.11610669,0.00022998,2]
[313372879,1707240478678,-267.28138141,0.00022999,2]
[313372880,1707240478710,-35623.1647592,0.00023,2]
[313372883,1707240515299,171.3,0.00022242,2]
[313372884,1707240545749,-1400.57928577,0.0002251,2]
[313372885,1707240545773,-710.97,0.000229,2]
[313372886,1707240545793,-516.61076325,0.000229,2]
[313372887,1707240545814,-2406.09882225,0.000229,2]
[313372888,1707240545835,-476.72497985,0.000229,2]
[313372889,1707240545858,-745.75007046,0.000229,2]
[313372890,1707240545878,-717.19,0.000229,2]
[313372891,1707240545898,-312.73255327,0.00022998,2]
[313372892,1707240545917,-534.13363385,0.00022998,2]
[313372893,1707240545937,-155.38408579,0.00022998,2]
[313372894,1707240545959,-1049.14158098,0.00022999,2]
[313372895,1707240545980,-148461.50856496,0.00023,2]
[313372896,1707240549219,-1130.3574,0.00023,2]
[313372897,1707240559162,-4190.10208253,0.00023,2]
[313372898,1707240559305,-34468.616,0.00023,2]
[313372899,1707240560137,-73509.042,0.00023,2]
[313372900,1707240561169,-184.75483576,0.000229,2]
[313372901,1707240561197,-138616.99516424,0.00023,2]
[313372902,1707240574120,-534.13363385,0.00022999,2]
[313372903,1707240574140,-724.83,0.00023,2]
[313372904,1707240574160,-20626.42736615,0.00023,2]
[313372913,1707240631821,-717.66,0.000229,2]
[313372914,1707240631830,-4298.7804,0.000229,2]
[313372915,1707240631841,-344.4071755,0.000229,2]
[313372916,1707240631850,-807.20635078,0.000229,2]
[313372917,1707240631859,-1604.0658815,0.000229,2]
[313372918,1707240632001,-534.13363385,0.00022999,2]
[313372919,1707240632011,-729.83,0.00023,2]
[313372920,1707240632020,-12526.51901174,0.00023,2]
[313372943,1707240632435,-500.37927363,0.00023,2]
[313372944,1707240632449,-5650.72779891,0.00023,2]
[313372945,1707240632462,-9421.42134927,0.00023,2]
[313372946,1707240632473,-258.75,0.00023,2]
[313372947,1707240632486,-1316.67320483,0.00023,2]
[313372948,1707240632508,-237730.35304005,0.00023,2]
[313372949,1707240632520,-17452.97253626,0.00023,2]
[313372950,1707240632531,-267.3,0.00023,2]
[313372951,1707240632546,-1274.48749619,0.00023,2]
[313372952,1707240632724,-495432.92758799,0.00023,2]
[313372953,1707240632737,-2133.7925293,0.00023,2]
[313372956,1707240637806,-383.96093533,0.0002299,2]
[313372957,1707240637818,-3946.25777584,0.00023,2]
[313372958,1707240637832,-738.21863589,0.00023,2]
[313372959,1707240637846,-662.89522243,0.00023,2]
[313372960,1707240637865,-2062.21623981,0.00023,2]
[313372961,1707240637878,-1220520.3816991,0.00023,2]
[313372962,1707240637888,-23228.17938083,0.00023,2]
[313372963,1707240637898,-2604.16957331,0.00023,2]
[313372964,1707240637908,-2000.0,0.00023,2]
[313372965,1707240637917,-200.0,0.00023,2]
[313372966,1707240637927,-1400.57928577,0.00023017,2]
[313372967,1707240637937,-1162.47357393,0.00023079,2]
[313372968,1707240637946,-258.03,0.00023096,2]
[313372969,1707240637955,-176.99,0.00023096,2]
[313372970,1707240637966,-150.0,0.00023096,2]
[313372971,1707240637976,-156.99,0.0002316,2]
[313372972,1707240637986,-2000.0,0.0002323,2]
[313372973,1707240637995,-200.0,0.0002323,2]
[313372974,1707240638006,-258.03,0.00023233,2]
[313372975,1707240638015,-258.03,0.0002337,2]
[313372976,1707240638025,-1624.18294717,0.00023462,2]
[313372977,1707240638035,-258.03,0.00023507,2]
[313372978,1707240638045,-163.19,0.0002355,2]
[313372979,1707240638058,-258.03,0.00023644,2]
[313372980,1707240638070,-176.99,0.00023644,2]
[313372981,1707240638080,-300.0,0.00023644,2]
[313372982,1707240638090,-258.03,0.00023781,2]
[313372983,1707240638100,-258.03,0.00023918,2]
[313372984,1707240638110,-157.68,0.00023974,10]
[313372985,1707240638120,-201.89660623,0.00024,2]
[313372986,1707240638129,-258.03,0.00024055,2]
[313372987,1707240638139,-258.03,0.00024192,2]
[313372988,1707240638150,-176.99,0.00024192,2]
[313372989,1707240638160,-258.03,0.00024329,2]
[313372990,1707240638170,-4957.26,0.00024384,2]
[313372991,1707240638180,-258.03,0.00024466,2]
[313372992,1707240638191,-209.87,0.00024499,2]
[313372993,1707240638201,-156.99,0.0002453,2]
[313372994,1707240638211,-416.28,0.00024563,2]
[313372995,1707240638220,-258.03,0.00024603,2]
[313372996,1707240638230,-176.99,0.0002474,2]
[313372998,1707240638240,-1907.0887071,0.00025,2]
[313373000,1707240638250,-200.0,0.00025,2]
[313373002,1707240638260,-1589.9743297,0.00025,2]
[313373004,1707240638269,-937.18611161,0.00025,2]
[313373006,1707240638278,-304.58743218,0.00025,2]
[313373008,1707240638288,-202.85936825,0.00025,2]
[313373010,1707240638297,-350.0,0.00025,3]
[313373011,1707240638307,-176.99,0.00025288,2]
[313373013,1707240638316,-163.19,0.00025362,2]
[313373015,1707240638325,-176.99,0.00025836,2]
[313373018,1707240638335,-176.99,0.00026384,2]
[313373022,1707240638344,-476.72497982,0.00026771,3]
[313373025,1707240638353,-416.28,0.00026827,2]
[313373028,1707240638363,-176.99,0.00026932,2]
[313373030,1707240638372,-205.0,0.0002696,2]
[313373032,1707240638381,-400.0,0.00027,3]
[313373034,1707240638394,-163.19,0.00027173,2]
[313373036,1707240638403,-209.87,0.00027221,2]
[313373038,1707240638413,-164.19,0.0002731,2]
[313373040,1707240638422,-1824.87,0.00027455,2]
[313373042,1707240638432,-351.77,0.0002748,2]
[313373044,1707240638442,-250.0,0.00027879,2]
[313373046,1707240638451,-641.98579261,0.00028,2]
[313373048,1707240638460,-4060.43716,0.00028,2]
[313373050,1707240638470,-2000.0,0.00028045,2]
[313373052,1707240638479,-2705.0,0.00028083,2]
[313373054,1707240638489,-150.0,0.00028139,2]
[313373057,1707240638498,-250.0,0.0002815,2]
[313373059,1707240638508,-167.17,0.00028234,2]
[313373060,1707240638518,-163.19,0.00028985,2]
[313373063,1707240638527,-1500.0,0.00029,2]
[313373065,1707240638536,-1500.0,0.00029,2]
[313373067,1707240638545,-1500.0,0.00029,2]
[313373069,1707240638554,-1500.0,0.00029,2]
[313373071,1707240638563,-1500.0,0.00029,2]
[313373073,1707240638573,-1500.0,0.00029,2]
[313373075,1707240638582,-1500.0,0.00029,2]
[313373077,1707240638591,-1500.0,0.00029,2]
[313373079,1707240638600,-1500.0,0.00029,2]
[313373081,1707240638609,-1491.18,0.00029,2]
[313373083,1707240638619,-450.0,0.00029,3]
[313373085,1707240638628,-416.28,0.00029091,2]
[313373087,1707240638638,-1824.87,0.00029099,2]
[313373105,1707240638793,-2646.0,0.000294,2]
[313373107,1707240638804,-366.23585006,0.000295,2]
[313373109,1707240638815,-176.13214682,0.000298,2]
[313373112,1707240638825,-209.87,0.00029944,2]
[313373114,1707240638834,-9678.59852311,0.0003,2]
[313373116,1707240638843,-155.0,0.0003,2]
[313373118,1707240638853,-585.09173402,0.0003,2]
[313373120,1707240638862,-356.9984069,0.0003,2]
[313373122,1707240638872,-5639.60961651,0.0003,2]
[313373124,1707240638882,-289.3460305,0.0003,2]
[313373126,1707240638892,-279.59839167,0.0003,2]
[313373128,1707240638901,-244.38060907,0.0003,4]
[313373130,1707240638911,-500.0,0.0003,2]
[313373132,1707240638920,-500.0,0.0003,2]
[313373134,1707240638930,-500.0,0.0003,2]
[313373136,1707240638939,-500.0,0.0003,2]
[313373138,1707240638947,-500.0,0.0003,2]
[313373140,1707240638958,-500.0,0.0003,2]
[313373142,1707240638967,-205.0,0.00030631,8]
[313373144,1707240638976,-476.72497982,0.00030643,5]
[313373146,1707240638985,-1824.87,0.00030743,2]
[313373148,1707240638994,-163.19,0.00030796,2]
[313373150,1707240639003,-500.0,0.00031,3]
[313373152,1707240639012,-150.0,0.00031057,2]
[313373154,1707240639021,-15175.0,0.000313,2]
[313373156,1707240639031,-983.42,0.00031338,2]
[313373158,1707240639040,-772.56,0.00031338,2]
[313373160,1707240639049,-832.1,0.00031338,2]
[313373162,1707240639059,-23900.0,0.00031338,2]
[313373163,1707240639068,-416.28,0.00031355,2]
[313373165,1707240639077,-153.33,0.00031574,2]
[313373167,1707240639086,-180.0,0.00031644,2]
[313373170,1707240639096,-150.0,0.00031652,2]
[313373172,1707240639106,-153.33,0.00031683,2]
[313373173,1707240639114,-153.33,0.00031793,2]
[313373176,1707240639124,-179.1,0.00031886,2]
[313373177,1707240639133,-153.33,0.00031903,2]
[313373179,1707240639143,-153.33,0.00032012,2]
[313373181,1707240639152,-153.33,0.00032122,2]
[313373183,1707240639161,-153.33,0.00032232,2]
[313373185,1707240639171,-150.0,0.00032246,2]
[313373187,1707240639181,-153.33,0.00032341,2]
[313373190,1707240639191,-1824.87,0.00032387,2]
[313373191,1707240639201,-153.33,0.00032451,2]
[313373193,1707240639210,-153.33,0.00032561,2]
[313373195,1707240639219,-163.19,0.00032608,2]
[313373198,1707240639228,-209.87,0.00032666,2]
[313373199,1707240639238,-153.33,0.0003267,2]
[313373201,1707240639247,-164.19,0.00032772,2]
[313373203,1707240639256,-153.33,0.0003278,2]
[313373205,1707240639265,-150.0,0.0003284,2]
[313373207,1707240639274,-153.33,0.0003289,2]
[313373209,1707240639284,-983.42,0.00032905,2]
[313373211,1707240639293,-153.33,0.00032999,2]
[313373213,1707240639301,-550.0,0.00033,3]
[313373215,1707240639310,-153.33,0.00033109,2]
[313373217,1707240639319,-1000.0,0.00033151,120]
[313373219,1707240639328,-153.33,0.00033219,2]
[313373221,1707240639338,-150.0,0.00033435,2]
[313373223,1707240639346,-416.28,0.00033619,2]
[313373226,1707240639356,-152.81386048,0.000339,2]
[313373227,1707240639365,-152.81386044,0.000339,2]
[313373229,1707240639374,-766.27755389,0.00034,4]
[313373231,1707240639383,-150.0,0.00034029,2]
[313373233,1707240639393,-1824.87,0.00034031,2]
[313373234,1707240639402,-205.0,0.00034302,14]
[313373235,1707240639412,-983.42,0.00034472,2]
[313373236,1707240639423,-476.72497982,0.00034514,7]
[313373237,1707240639434,-150.0,0.00034623,2]
[313373238,1707240639444,-7999.99,0.000349,14]
[313373239,1707240639454,-511.15824916,0.000349,2]
[313373240,1707240639464,-511.15824913,0.000349,2]
[313373241,1707240639474,-511.15824913,0.000349,2]
[313373242,1707240639483,-511.15824913,0.000349,2]
[313373244,1707240639493,-511.15824913,0.000349,2]
[313373246,1707240639503,-511.15824913,0.000349,2]
[313373248,1707240639513,-155.0,0.00035,2]
[313373250,1707240639523,-155.0,0.00035,2]
[313373252,1707240639533,-586.0194991,0.00035,2]
[313373254,1707240639543,-600.0,0.00035,3]
[313373256,1707240639553,-9221.86633626,0.00035,2]
[313373258,1707240639563,-150.0,0.00035218,2]
[313373260,1707240639573,-832.1,0.00035256,2]
[313373262,1707240639584,-4957.26,0.00035616,2]
[313373264,1707240639593,-4692.88,0.00035616,2]
[313373266,1707240639603,-1824.87,0.00035674,2]
[313373268,1707240639612,-150.0,0.00035812,2]
[313373270,1707240639621,-416.28,0.00035883,2]
[313373272,1707240639631,-983.42,0.00036039,2]
[313373274,1707240639640,-2106.38139839,0.00036301,30]
[313373276,1707240639650,-150.0,0.00036407,2]
[313373278,1707240639660,-745.75007044,0.00036437,2]
[313373280,1707240639670,-344.40717548,0.00036437,2]
[313373282,1707240639681,-807.20635077,0.00036437,2]
[313373284,1707240639691,-1604.0658815,0.00036437,2]
[313373286,1707240639700,-511.15824913,0.00036745,2]
[313373288,1707240639710,-414.0,0.00036785,5]
[313373290,1707240639719,-4692.88,0.00036934,2]
[313373292,1707240639728,-650.0,0.00037,3]
[313373294,1707240639739,-150.0,0.00037001,2]
[313373297,1707240639751,-150.0,0.00037559,7]
[313373299,1707240639765,-199.104,0.00037559,7]
[313373302,1707240639780,-150.0,0.00037595,2]
[313373304,1707240639795,-983.42,0.00037606,2]
[313373306,1707240639808,-3250.6,0.00037873,2]
[313373309,1707240639824,-150.0,0.00037899,2]
[313373311,1707240639838,-150.0,0.00037899,2]
[313373314,1707240639852,-400.0,0.000379,13]
[313373316,1707240639867,-636588.677069,0.000379,3]
[313373319,1707240639881,-205.0,0.00037973,21]
[313373321,1707240639897,-237.28975725,0.00038,2]
[313373324,1707240639908,-237.28975725,0.00038,2]
[313373326,1707240639920,-237.28975725,0.00038,2]
[313373328,1707240639934,-237.28975725,0.00038,2]
[313373331,1707240639947,-237.28975725,0.00038,2]
[313373333,1707240639960,-237.28975725,0.00038,2]
[313373335,1707240639972,-237.28975725,0.00038,2]
[313373338,1707240639986,-237.28975725,0.00038,2]